bitfinex/quotes_ETHUSD_20251215
["timestamp","ask_amount","ask_price","bid_price","bid_amount"]
[1765772715201,0.01285037,3109.5,3109.1,6.43272972]
[1765772715764,0.495,3109.2,3108.4,0.001]
[1765772715968,0.01285037,3109.5,3108.4,0.001]
[1765772715969,0.495,3109.0,3108.4,0.001]
[1765772716266,0.508,3108.9,3108.8,3.21663533]
[1765772716467,0.508,3108.9,3108.5,3.2169701]
[1765772716895,0.508,3108.9,3108.6,3.21686261]
[1765772717612,0.508,3108.9,3108.5,0.58047529]
[1765772717769,0.495,3108.5,3108.4,0.001]
[1765772718169,0.9539,3108.5,3108.4,0.001]
[1765772718789,3.204466,3108.5,3108.4,0.001]
[1765772719170,6.842284,3108.5,3108.4,0.001]
[1765772719488,8.89767468,3108.5,3108.4,0.001]
[1765772719687,10.11041387,3108.5,3108.4,0.001]
[1765772719889,9.81216187,3108.5,3108.4,0.001]
[1765772720303,10.70299587,3108.5,3108.4,0.001]
[1765772720897,8.51857087,3108.5,3108.4,0.001]
[1765772721270,18.00092987,3108.5,3108.4,0.001]
[1765772721470,17.60497287,3108.5,3108.4,0.001]
[1765772721696,5.78912887,3108.5,3108.4,0.001]
[1765772722306,8.56446187,3108.5,3108.4,0.001]
[1765772722641,0.495,3108.5,3108.4,0.001]
[1765772722783,1.004,3108.5,3108.4,0.001]
[1765772723185,0.509,3108.5,3108.4,0.001]
[1765772723381,1.004,3108.5,3108.4,0.001]
[1765772723581,4.67988568,3108.5,3108.4,0.001]
[1765772723798,5.47083861,3108.5,3108.4,0.001]
[1765772724575,18.81558061,3108.5,3108.4,0.001]
[1765772724991,15.92466261,3108.5,3108.4,0.001]
[1765772725197,12.26473161,3108.5,3108.4,0.001]
[1765772726403,5.87634261,3108.5,3108.4,0.001]
[1765772726905,9.29607161,3108.5,3108.4,0.001]
[1765772727110,24.63555461,3108.5,3108.4,0.001]
[1765772727414,9.65281261,3108.5,3108.4,0.001]
[1765772728109,32.83572161,3108.5,3108.4,0.001]
[1765772728278,33.4161969,3108.5,3108.4,0.001]
[1765772728978,32.9071969,3108.5,3108.4,0.001]
[1765772729178,33.4161969,3108.5,3108.4,0.001]
[1765772729781,33.4181969,3108.5,3108.4,0.001]
[1765772730179,5.9498179,3108.5,3108.4,0.001]
[1765772730379,9.0071899,3108.5,3108.4,0.001]
[1765772730610,8.7989049,3108.5,3108.4,0.001]
[1765772731308,23.0817759,3108.5,3108.4,0.001]
[1765772731508,5.9498179,3108.5,3108.4,0.001]
[1765772731684,8.5750039,3108.5,3108.4,0.001]
[1765772731880,6.4588179,3108.5,3108.4,0.001]
[1765772732503,0.002,3108.5,3108.4,0.001]
[1765772736221,0.511,3108.5,3108.4,0.001]
[1765772737787,0.002,3108.5,3108.4,0.001]
[1765772737990,0.511,3108.5,3108.4,0.001]
[1765772738190,0.002,3108.5,3108.4,0.001]
[1765772739807,0.002,3108.5,3108.4,0.03317089]
[1765772740119,20.55215,3108.5,3108.4,0.001]
[1765772740299,9.73959233,3108.5,3108.4,0.001]
[1765772740484,1.92077929,3108.5,3108.4,0.001]
[1765772740684,4.00496129,3108.5,3108.4,0.001]
[1765772741115,22.86421929,3108.5,3108.4,0.001]
[1765772741319,22.54224529,3108.5,3108.4,0.001]
[1765772741822,11.42523329,3108.5,3108.4,0.001]
[1765772742006,15.83692734,3108.5,3108.4,0.001]
[1765772742212,28.50379234,3108.5,3108.4,0.001]
[1765772742608,25.83069934,3108.5,3108.4,0.001]
[1765772743223,24.38291634,3108.5,3108.4,0.001]
[1765772743394,9.96512534,3108.5,3108.4,0.001]
[1765772743598,8.43251634,3108.5,3108.4,0.001]
[1765772743889,6.33247334,3108.5,3108.4,0.001]
[1765772744119,11.74911334,3108.5,3108.4,0.001]
[1765772744325,13.73304734,3108.5,3108.4,0.001]
[1765772744622,8.49556934,3108.5,3108.4,0.001]
[1765772745195,11.02503334,3108.5,3108.4,0.001]
[1765772745923,4.66178568,3108.5,3108.4,0.001]
[1765772746224,10.26948368,3108.5,3108.4,0.001]
[1765772746400,9.37676468,3108.5,3108.4,0.001]
[1765772746720,5.06728968,3108.5,3108.4,0.001]
[1765772746925,3.21898568,3108.5,3108.4,0.001]
[1765772747100,10.12442173,3108.5,3108.4,0.001]
[1765772747496,5.30536873,3108.5,3108.4,0.001]
[1765772747908,23.88838702,3108.5,3108.4,0.001]
[1765772748224,29.49640302,3108.5,3108.4,0.001]
[1765772748429,24.06518102,3108.5,3108.4,0.001]
[1765772748600,23.67479702,3108.5,3108.4,0.001]
[1765772748804,19.92615202,3108.5,3108.4,0.001]
[1765772749014,26.18431002,3108.5,3108.4,0.001]
[1765772750013,23.43491702,3108.5,3108.4,0.001]
[1765772750216,32.26157102,3108.5,3108.4,0.001]
[1765772750420,29.45589002,3108.5,3108.4,0.001]
[1765772750736,16.34944402,3108.5,3108.4,0.001]
[1765772751138,6.29134802,3108.5,3108.4,0.001]
[1765772751336,33.26357739,3108.5,3108.4,0.001]
[1765772751632,32.75357739,3108.5,3108.4,0.001]
[1765772751837,10.92982639,3108.5,3108.4,0.001]
[1765772752033,10.41982639,3108.5,3108.4,0.001]
[1765772752223,6.30419839,3108.5,3108.4,0.001]
[1765772752424,10.92387239,3108.5,3108.4,0.001]
[1765772753122,9.31638539,3108.5,3108.4,0.001]
[1765772753321,8.45538539,3108.5,3108.4,0.001]
[1765772753717,8.84225839,3108.5,3108.4,0.001]
[1765772753924,9.35225839,3108.5,3108.4,0.001]
[1765772754132,14.94506839,3108.5,3108.4,0.001]
[1765772755146,33.26357739,3108.5,3108.4,0.001]
[1765772756117,6.30419839,3108.5,3108.4,0.001]
[1765772756343,33.26357739,3108.5,3108.4,0.001]
[1765772757426,5.79419839,3108.5,3108.4,0.001]
[1765772757625,13.03436039,3108.5,3108.4,0.001]
[1765772758141,11.53726139,3108.5,3108.4,0.001]
[1765772758346,12.98866739,3108.5,3108.4,0.001]
[1765772758648,11.77027739,3108.5,3108.4,0.001]
[1765772759350,33.26357739,3108.5,3108.4,0.001]
[1765772760318,10.63925639,3108.5,3108.4,0.001]
[1765772761248,6.30419839,3108.5,3108.4,0.001]
[1765772761553,11.04628239,3108.5,3108.4,0.001]
[1765772762352,10.36941339,3108.5,3108.4,0.001]
[1765772763352,19.14118239,3108.5,3108.4,0.001]
[1765772763854,11.97608139,3108.5,3108.4,0.001]
[1765772764032,11.63054939,3108.5,3108.4,0.001]
[1765772764527,14.13255039,3108.5,3108.4,0.001]
[1765772764956,12.34455039,3108.5,3108.4,0.001]
[1765772765259,10.11070439,3108.5,3108.4,0.001]
[1765772765552,13.53498639,3108.5,3108.4,0.001]
[1765772765747,12.76243639,3108.5,3108.4,0.001]
[1765772766554,11.05945639,3108.5,3108.4,0.001]
[1765772766756,13.19978639,3108.5,3108.4,0.001]
[1765772766949,12.60715539,3108.5,3108.4,0.001]
[1765772767554,11.68500639,3108.5,3108.4,0.001]
[1765772767855,26.10619339,3108.5,3108.4,0.001]
[1765772768060,25.05253239,3108.5,3108.4,0.001]
[1765772768351,22.70850439,3108.5,3108.4,0.001]
[1765772768852,10.67422939,3108.5,3108.4,0.001]
[1765772769953,23.99258939,3108.5,3108.4,0.001]
[1765772770455,21.39557839,3108.5,3108.4,0.001]
[1765772770953,29.36714539,3108.5,3108.4,0.001]
[1765772771154,25.98070939,3108.5,3108.4,0.001]
[1765772771355,10.55540439,3108.5,3108.4,0.001]
[1765772771661,9.91150839,3108.5,3108.4,0.001]
[1765772771954,5.37139839,3108.5,3108.4,0.001]
[1765772772157,7.22237734,3108.5,3108.4,0.001]
[1765772772355,8.18057734,3108.5,3108.4,0.001]
[1765772772658,18.90360338,3108.5,3108.4,0.001]
[1765772772846,31.13059238,3108.5,3108.4,0.001]
[1765772773260,30.05966138,3108.5,3108.4,0.001]
[1765772773426,29.40013551,3108.5,3108.4,0.001]
[1765772773632,28.57955151,3108.5,3108.4,0.001]
[1765772773951,26.50713695,3108.5,3108.4,0.001]
[1765772775176,28.04683195,3108.5,3108.4,0.001]
[1765772775655,26.54234695,3108.5,3108.4,0.001]
[1765772775855,24.33785895,3108.5,3108.4,0.001]
[1765772776062,20.43709295,3108.5,3108.4,0.001]
[1765772776668,17.05017295,3108.5,3108.4,0.001]
[1765772776831,16.26258995,3108.5,3108.4,0.001]
[1765772777031,14.18343695,3108.5,3108.4,0.001]
[1765772777233,10.97383382,3108.5,3108.4,0.001]
[1765772777670,6.77086885,3108.5,3108.4,0.001]
[1765772777853,9.98785453,3108.5,3108.4,0.001]
[1765772778451,10.39335853,3108.5,3108.4,0.001]
[1765772778754,9.98885453,3108.5,3108.4,0.001]
[1765772779754,9.47885453,3108.5,3108.4,0.001]
[1765772779959,9.98785453,3108.5,3108.4,0.001]
[1765772784260,9.47885453,3108.5,3108.4,0.001]
[1765772784767,9.98785453,3108.5,3108.4,0.001]
[1765772789095,15.34661453,3108.5,3108.4,0.001]
[1765772789391,40.12797137,3108.5,3108.4,0.001]
[1765772789596,40.70844666,3108.5,3108.4,0.001]
[1765772797508,13.74906766,3108.5,3108.4,0.001]
[1765772797686,40.70844666,3108.5,3108.4,0.001]
[1765772800813,31.84089056,3108.1,3108.0,0.001]
[1765772801112,36.02439369,3108.1,3108.0,0.001]
[1765772801409,36.47909369,3108.1,3108.0,0.001]
[1765772801802,39.69649338,3108.1,3108.0,0.001]
[1765772802887,39.69867235,3108.1,3108.0,0.001]
[1765772803796,40.27914764,3108.1,3108.0,0.001]
[1765772804315,46.52516612,3108.1,3108.0,0.001]
[1765772807726,46.01616612,3108.1,3108.0,0.001]
[1765772807924,46.52516612,3108.1,3108.0,0.001]
[1765772808929,19.56578712,3108.1,3108.0,0.001]
[1765772809133,46.53801649,3108.1,3108.0,0.001]
[1765772810629,46.02901649,3108.1,3108.0,0.001]
[1765772810802,23.08447049,3108.1,3108.0,0.001]
[1765772811002,26.89538696,3108.1,3108.0,0.001]
[1765772811202,23.16035549,3108.1,3108.0,0.001]
[1765772812140,30.33864949,3108.1,3108.0,0.001]
[1765772812302,27.40564949,3108.1,3108.0,0.001]
[1765772812507,26.08364949,3108.1,3108.0,0.001]
[1765772813241,26.09897849,3108.1,3108.0,0.001]
[1765772813937,17.49668483,3108.1,3108.0,0.001]
[1765772814240,19.66719036,3108.1,3108.0,0.001]
[1765772815337,18.93018636,3108.1,3108.0,0.001]
[1765772815511,17.84953636,3108.1,3108.0,0.001]
[1765772815710,17.69895336,3108.1,3108.0,0.001]
[1765772816245,17.69109036,3108.1,3108.0,0.001]
[1765772816418,9.47626854,3108.1,3108.0,0.001]
[1765772816619,9.98526854,3108.1,3108.0,0.001]
[1765772817224,10.39077254,3108.1,3108.0,0.001]
[1765772820924,10.39077254,3108.1,3107.1,0.001]
[1765772820925,50.70114267,3108.1,3107.1,0.001]
[1765772821131,21.27403936,3107.2,3107.1,0.001]
[1765772821328,14.19116136,3107.2,3107.1,0.001]
[1765772822024,19.22376536,3107.2,3107.1,0.001]
[1765772822231,21.6363419,3107.2,3107.1,0.001]
[1765772822431,22.0943419,3107.2,3107.1,0.001]
[1765772822630,9.85508154,3107.2,3107.1,0.001]
[1765772822847,8.82983661,3107.2,3107.1,0.001]
[1765772823050,13.90819261,3107.2,3107.1,0.001]
[1765772823347,19.91339126,3107.2,3107.1,0.001]
[1765772823553,15.43866026,3107.2,3107.1,0.001]
[1765772823845,7.5580909,3107.2,3107.1,0.001]
[1765772824052,11.07672113,3107.2,3107.1,0.001]
[1765772825031,33.60942713,3107.2,3107.1,0.001]
[1765772825656,29.14281213,3107.2,3107.1,0.001]
[1765772825960,22.77981213,3107.2,3107.1,0.001]
[1765772826266,20.96420313,3107.2,3107.1,0.001]
[1765772827864,8.94248913,3107.2,3107.1,0.001]
[1765772828037,9.05716713,3107.2,3107.1,0.001]
[1765772828239,8.82105613,3107.2,3107.1,0.001]
[1765772828458,0.58047529,3107.2,3107.1,0.001]
[1765772828663,1.10232566,3107.2,3107.1,0.001]
[1765772829062,4.72616127,3107.2,3107.1,0.001]
[1765772829864,1.50782966,3107.2,3107.1,0.001]
[1765772830050,4.72616127,3107.2,3107.1,0.001]
[1765772830450,0.92735437,3107.2,3107.1,0.001]
[1765772831044,0.01285037,3107.2,3107.1,0.001]
[1765772831240,0.52185037,3107.2,3107.1,0.001]
[1765772831437,3.74018198,3107.2,3107.1,0.001]
[1765772831638,0.52185037,3107.2,3107.1,0.001]
[1765772834370,3.74018198,3107.2,3107.1,0.001]
[1765772836863,0.52185037,3107.2,3107.1,0.001]
[1765772837249,0.509,3107.2,3107.1,0.001]
[1765772851091,0.01285037,3107.4,3107.1,0.001]
[1765772851291,0.509,3107.3,3107.1,0.001]
[1765772857316,0.01285037,3107.4,3107.1,0.001]
[1765772857614,0.509,3107.3,3107.1,0.001]
[1765772858216,0.01285037,3107.2,3107.1,0.001]
[1765772862531,0.4872,3108.2,3107.1,0.001]
[1765772862690,0.01285037,3107.8,3107.1,0.001]
[1765772863121,0.01285037,3107.4,3107.1,0.001]
[1765772863426,0.509,3107.3,3107.1,0.001]
[1765772864194,0.509,3107.2,3107.1,0.001]
[1765772865003,0.509,3107.3,3107.1,0.001]
[1765772868218,0.509,3107.2,3107.1,0.001]
[1765772869033,0.509,3107.3,3107.1,0.001]
[1765772870938,0.01285037,3107.5,3107.1,0.001]
[1765772871234,0.509,3107.4,3107.1,0.001]
[1765772874907,0.01485037,3108.0,3107.1,0.001]
[1765772875244,0.509,3107.9,3107.1,0.001]
[1765772875427,0.01285037,3107.8,3107.2,6.43666322]
[1765772876339,0.01285037,3107.6,3107.2,6.43666322]
[1765772876543,0.509,3107.5,3107.2,6.43666322]
[1765772877048,0.01485037,3108.0,3107.2,6.43666322]
[1765772877049,0.509,3107.7,3107.2,6.43666322]
[1765772877414,0.509,3107.7,3107.2,5.11965997]
[1765772879638,0.509,3107.7,3107.3,6.43645608]
[1765772880912,0.509,3107.7,3107.5,4.47579365]
[1765772881128,0.509,3107.9,3107.5,4.47579365]
[1765772881431,0.509,3107.9,3107.7,3.21781381]
[1765772881640,0.509,3107.9,3107.8,0.64678178]
[1765772881947,0.002,3108.0,3107.8,0.64678178]
[1765772882139,0.002,3108.0,3107.9,4.47450828]
[1765772883348,0.002,3108.0,3107.8,0.67895888]
[1765772883550,0.002,3108.0,3107.9,3.21760674]
[1765772883749,0.002,3108.0,3107.9,4.3732778]
[1765772887060,0.002,3108.0,3107.9,4.40545386]
[1765772887352,0.002,3108.0,3107.9,4.3732778]
[1765772889058,0.002,3108.0,3107.9,4.95375309]
[1765772890533,0.002,3108.0,3107.9,4.98592915]
[1765772890738,0.002,3108.0,3107.9,4.98692915]
[1765772891834,0.002,3108.0,3107.9,4.95475309]
[1765772892165,0.002,3108.0,3107.9,4.98692915]
[1765772894330,0.002,3108.0,3107.9,9.93826137]
[1765772898644,0.002,3108.0,3107.9,4.95475309]
[1765772898844,0.002,3108.0,3107.9,0.001]
[1765772898845,0.9618,3108.0,3107.9,0.001]
[1765772899052,0.9618,3108.0,3107.9,3.79908203]
[1765772899454,0.9618,3108.0,3107.9,0.58147529]
[1765772899642,0.9618,3108.0,3107.9,3.21860674]
[1765772900744,0.9618,3108.0,3107.9,0.001]
[1765772906261,0.4776,3108.0,3107.9,0.001]
[1765772906783,0.9618,3108.0,3107.9,0.001]
[1765772909777,0.4776,3108.0,3107.9,0.001]
[1765772910854,0.002,3108.0,3107.9,0.001]
[1765772911682,0.4567,3108.0,3107.9,0.001]
[1765772912584,0.002,3108.0,3107.9,0.001]
[1765772917762,0.002,3108.0,3107.9,1.09211331]
[1765772921997,0.002,3108.0,3107.9,4.30972005]
[1765772925192,0.002,3108.0,3107.9,8.78336787]
[1765772928298,0.002,3108.0,3107.9,9.36384316]
[1765772929605,0.002,3108.0,3107.9,9.49264046]
[1765772933777,0.002,3108.0,3107.9,9.36384316]
[1765772935909,0.002,3108.0,3107.9,4.89019534]
[1765772937525,0.002,3108.0,3107.9,9.36301386]
[1765772955929,0.002,3108.4,3108.0,0.58047529]
[1765772956131,0.002,3108.4,3108.3,5.05329381]
[1765772956325,0.002,3108.4,3108.3,5.08546573]
[1765772957549,0.002,3108.4,3108.3,8.3026584]
[1765772957743,0.002,3108.4,3108.3,8.27048648]
[1765772957979,0.002,3108.5,3108.4,0.58047529]
[1765772958258,0.4665,3109.3,3109.2,4.47281852]
[1765772958259,0.002,3109.3,3109.2,4.47281852]
[1765772958748,0.9273,3109.3,3109.2,4.47281852]
[1765772959730,0.9273,3109.3,3109.2,7.68907993]
[1765772960832,0.4628,3109.3,3109.2,7.68907993]
[1765772962523,0.002,3109.3,3109.2,7.68907993]
[1765772962724,0.002,3109.3,3109.2,8.77962546]
[1765772964157,0.4628,3109.3,3109.2,8.77962546]
[1765772964460,0.9273,3109.3,3109.2,4.30680694]
[1765772968830,0.002,3109.3,3109.2,4.30680694]
[1765772969338,0.002,3109.3,3109.2,4.88728223]
[1765772969540,0.4973,3109.3,3109.2,4.88728223]
[1765772971059,0.002,3109.3,3109.2,4.88728223]
[1765772974051,0.002,3109.3,3109.2,4.91944484]
[1765772974437,0.002,3109.6,3109.3,0.58047529]
[1765772974651,0.002,3109.6,3109.5,9.52102041]
[1765772975160,0.002,3109.6,3109.5,12.73697152]
[1765772975359,0.002,3110.1,3109.9,0.58047529]
[1765772975558,0.002,3110.1,3110.0,0.509]
[1765772976133,0.002,3110.1,3110.0,0.6377198]
[1765772976334,0.002,3110.1,3110.0,1.20656657]
[1765772977363,0.002,3110.1,3110.0,4.42200065]
[1765772979385,0.002,3110.1,3110.0,3.91300065]
[1765772979586,0.002,3110.1,3110.0,4.42200065]
[1765772980555,0.002,3110.1,3110.0,8.89227321]
[1765772982282,0.002,3110.1,3110.0,4.42200065]
[1765772982495,0.002,3110.1,3110.0,8.89227321]
[1765772987900,0.9499,3110.1,3110.0,4.29328085]
[1765772988201,0.002,3110.1,3110.0,4.29328085]
[1765772990300,0.9499,3110.1,3110.0,4.29328085]
[1765772991200,0.4997,3110.1,3110.0,4.29328085]
[1765772992202,0.4997,3110.1,3110.0,3.78428085]
[1765772992374,0.9499,3110.1,3110.0,3.78428085]
[1765772992894,0.4997,3110.1,3110.0,3.78428085]
[1765772993104,0.002,3110.1,3110.0,3.78428085]
[1765772994381,0.002,3110.1,3110.0,4.23648085]
[1765772994580,0.002,3110.1,3110.0,3.78428085]
[1765772998715,0.9122,3110.1,3110.0,3.78428085]
[1765772999386,0.9122,3110.1,3110.0,8.25197477]
[1765773000418,0.9122,3110.1,3110.0,3.21543408]
[1765773000661,0.9122,3110.1,3110.0,0.58047529]
[1765773000809,0.6153,3109.6,3109.5,0.4122]
[1765773001123,0.6215,3109.6,3109.5,3.21595111]
[1765773001332,0.002,3110.1,3109.5,12.91176762]
[1765773001653,0.002,3110.1,3110.0,4.46769392]
[1765773001809,0.4367,3110.1,3110.0,4.46769392]
[1765773002004,0.8915,3110.1,3109.7,4.46769392]
[1765773002236,0.4568,3110.1,3109.7,4.46769392]
[1765773002446,0.6215,3109.8,3109.7,5.98824579]
[1765773002851,0.6215,3109.8,3109.7,0.58047529]
[1765773002852,1.0763,3109.8,3109.7,0.58047529]
[1765773003012,1.0763,3109.8,3109.4,3.21604604]
[1765773003207,0.4552,3109.5,3109.1,3.21734815]
[1765773003407,0.4344,3109.7,3109.2,0.58047529]
[1765773003612,0.4344,3109.6,3109.2,3.7967367]
[1765773003924,0.455,3109.3,3109.1,0.001]
[1765773004126,0.4344,3109.6,3109.2,6.43250107]
[1765773004351,0.4344,3109.5,3109.2,6.43250107]
[1765773004540,0.455,3109.3,3109.2,3.79671495]
[1765773004917,0.8896,3109.3,3109.2,3.79671495]
[1765773009169,0.8896,3109.3,3109.1,3.21735461]
[1765773009376,0.4593,3109.2,3109.1,0.001]
[1765773010233,4.16985004,3109.2,3109.1,0.001]
[1765773010638,0.95358863,3109.2,3109.1,0.001]
[1765773010838,0.4593,3109.2,3109.1,0.001]
[1765773011977,0.9683,3109.2,3109.1,0.001]
[1765773013774,0.5133,3109.2,3109.1,0.001]
[1765773013961,0.9683,3109.2,3109.1,0.001]
[1765773015280,0.4593,3109.2,3109.1,0.001]
[1765773015580,0.9683,3109.2,3109.1,0.001]
[1765773017495,1.38802175,3109.2,3109.1,0.001]
[1765773018607,5.04186223,3109.2,3109.1,0.001]
[1765773018903,21.47504416,3109.2,3109.1,0.001]
[1765773019102,16.06948416,3109.2,3109.1,0.001]
[1765773019873,18.03588416,3109.2,3109.1,0.001]
[1765773020108,17.84280357,3109.2,3109.1,0.001]
[1765773020497,19.7441455,3109.2,3109.1,0.001]
[1765773020873,21.40331709,3109.2,3109.1,0.001]
[1765773021079,9.48052309,3109.2,3109.1,0.001]
[1765773021396,7.91497416,3109.2,3109.1,0.001]
[1765773023234,7.36510016,3109.2,3109.1,0.001]
[1765773024729,6.85610016,3109.2,3109.1,0.001]
[1765773024932,7.36510016,3109.2,3109.1,0.001]
[1765773025836,5.59026245,3109.2,3109.1,0.001]
[1765773026026,26.40970038,3109.2,3109.1,0.001]
[1765773026196,26.5385346,3109.2,3109.1,0.001]
[1765773026395,12.5169036,3109.2,3109.1,0.001]
[1765773026600,12.9635596,3109.2,3109.1,0.001]
[1765773026901,18.3116796,3109.2,3109.1,0.001]
[1765773027938,20.1158456,3109.2,3109.1,0.001]
[1765773028904,20.1262016,3109.2,3109.1,0.001]
[1765773029930,20.7894666,3109.2,3109.1,0.001]
[1765773030141,20.4675576,3109.2,3109.1,0.001]
[1765773030942,21.7047236,3109.2,3109.1,0.001]
[1765773032141,25.1299606,3109.2,3109.1,0.001]
[1765773032338,22.0346796,3109.2,3109.1,0.001]
[1765773032541,19.6001316,3109.2,3109.1,0.001]
[1765773032730,16.2948756,3109.2,3109.1,0.001]
[1765773032915,13.9849666,3109.2,3109.1,0.001]
[1765773033117,22.3599406,3109.2,3109.1,0.001]
[1765773033323,16.1567016,3109.2,3109.1,0.001]
[1765773034050,10.1898326,3109.2,3109.1,0.001]
[1765773034249,23.2834756,3109.2,3109.1,0.001]
[1765773034459,16.7615406,3109.2,3109.1,0.001]
[1765773035222,22.0966876,3109.2,3109.1,0.001]
[1765773035524,28.34270608,3109.2,3109.1,0.001]
[1765773035957,23.87197015,3109.2,3109.1,0.001]
[1765773036156,37.38040908,3109.2,3109.1,0.001]
[1765773036356,37.05847408,3109.2,3109.1,0.001]
[1765773036522,28.34514408,3109.2,3109.1,0.001]
[1765773036722,28.02320908,3109.2,3109.1,0.001]
[1765773037253,0.01285037,3109.3,3109.1,0.4737]
[1765773037551,0.01285037,3109.3,3109.2,0.4727]
[1765773037720,0.01485037,3109.5,3109.2,0.4727]
[1765773037926,0.002,3109.5,3109.4,0.4727]
[1765773038123,0.002,3109.5,3109.4,3.68875454]
[1765773038343,0.002,3109.5,3109.4,0.9567]
[1765773039152,0.002,3109.5,3109.4,4.17275454]
[1765773040370,0.002,3109.5,3109.4,4.59002999]
[1765773041744,0.002,3109.5,3109.4,9.06076592]
[1765773042477,0.002,3109.5,3109.4,9.64124121]
[1765773043976,0.002,3109.5,3109.4,9.63937669]
[1765773050473,0.002,3109.5,3109.4,14.1082481]
[1765773059495,0.002,3109.5,3109.4,9.63798906]
[1765773060299,0.002,3109.5,3109.4,9.63898906]
[1765773060681,0.002,3109.5,3109.4,5.17150528]
[1765773060900,0.002,3109.5,3109.4,9.63348906]
[1765773061197,0.002,3109.5,3109.4,14.10097284]
[1765773061798,0.002,3109.5,3109.4,14.63521031]
[1765773071124,0.002,3110.1,3109.5,0.98597929]
[1765773071311,0.002,3110.1,3110.0,5.53065907]
[1765773071519,0.002,3110.1,3110.0,6.07181341]
[1765773071730,0.002,3110.1,3110.0,6.55031341]
[1765773071914,0.002,3110.1,3110.0,6.51815907]
[1765773073133,0.002,3110.1,3110.0,9.73359315]
[1765773073306,0.002,3110.1,3110.0,11.04137818]
[1765773079567,0.002,3110.1,3110.0,11.44688218]
[1765773079753,0.002,3110.1,3110.0,11.57558251]
[1765773080139,0.002,3110.1,3110.0,16.04306629]
[1765773080336,0.002,3110.6,3110.1,0.98597929]
[1765773080548,0.002,3110.6,3110.5,0.98597929]
[1765773080750,0.002,3110.9,3110.8,0.405504]
[1765773081026,0.002,3110.9,3110.8,1.46867929]
[1765773081227,0.002,3110.9,3110.8,1.94717929]
[1765773081426,0.002,3110.9,3110.8,5.29045616]
[1765773081628,0.002,3110.9,3110.8,6.61986833]
[1765773081848,0.002,3110.9,3110.8,6.58772226]
[1765773082666,0.002,3111.4,3111.1,9.92094685]
[1765773082963,0.002,3111.4,3111.2,0.98597929]
[1765773083120,0.4729,3112.3,3111.3,0.4827]
[1765773083349,0.002,3112.6,3111.3,0.4827]
[1765773083350,0.002,3112.6,3111.8,4.27674942]
[1765773083550,0.002,3112.6,3112.3,0.58047529]
[1765773083947,0.002,3112.6,3112.1,0.58047529]
[1765773083948,0.4767,3112.4,3112.1,0.58047529]
[1765773084191,0.4225,3112.5,3112.1,0.58047529]
[1765773084488,0.4767,3112.2,3112.1,0.58047529]
[1765773084884,0.002,3112.6,3112.1,0.58047529]
[1765773085189,0.4729,3112.5,3112.4,0.58047529]
[1765773085385,0.4729,3112.5,3112.4,3.79342992]
[1765773085595,0.4262,3112.5,3112.4,3.79342992]
[1765773085776,0.002,3112.6,3112.4,3.79342992]
[1765773086085,0.4267,3112.5,3112.4,3.79342992]
[1765773086252,0.002,3112.6,3112.4,5.48755314]
[1765773086996,0.002,3112.6,3112.5,0.4763]
[1765773087474,0.002,3112.6,3112.5,4.26962669]
[1765773088192,0.002,3112.6,3112.5,4.67513069]
[1765773088381,0.002,3112.6,3112.5,5.16583069]
[1765773088552,0.1891,3114.0,3112.6,0.98597929]
[1765773088553,0.4963,3113.7,3112.6,0.98597929]
[1765773088757,0.4963,3113.7,3113.6,5.04132475]
[1765773089171,0.9041,3113.7,3113.6,5.04132475]
[1765773089574,0.9041,3113.7,3113.6,8.25304109]
[1765773090456,0.4078,3113.7,3113.6,8.25304109]
[1765773091062,0.002,3113.9,3113.7,0.58047529]
[1765773091272,0.002,3113.9,3113.8,0.4912]
[1765773091592,0.6877,3113.9,3113.8,3.21151005]
[1765773091764,0.002,3113.9,3113.8,3.70271005]
[1765773093786,0.002,3113.9,3113.8,3.21151005]
[1765773093989,0.002,3113.9,3113.8,5.7307511]
[1765773094197,0.002,3113.9,3113.8,6.2214511]
[1765773094564,0.002,3113.9,3113.8,6.6269551]
[1765773096169,0.4869,3113.9,3113.8,5.2395511]
[1765773096370,0.002,3113.9,3113.8,6.2214511]
[1765773096587,0.002,3113.9,3113.8,5.7307511]
[1765773097095,0.002,3113.9,3113.8,6.6269551]
[1765773097395,0.002,3113.9,3113.8,6.1362551]
[1765773097768,0.4793,3113.9,3113.8,5.2395511]
[1765773097966,0.4793,3113.9,3113.8,3.79198534]
[1765773098404,0.002,3113.9,3113.8,5.17938934]
[1765773098604,0.002,3113.9,3113.8,3.79198534]
[1765773098605,0.4909,3113.9,3113.8,3.79198534]
[1765773099315,0.002,3113.9,3113.8,3.79198534]
[1765773099514,0.4909,3113.9,3113.8,3.79198534]
[1765773099819,0.4909,3113.9,3113.8,4.54325551]
[1765773100613,0.002,3113.9,3113.8,4.54325551]
[1765773101195,0.002,3113.9,3113.8,5.43995951]
[1765773101396,0.002,3113.9,3113.8,5.93065951]
[1765773102927,0.002,3113.9,3113.8,4.54325551]
[1765773103222,0.002,3113.9,3113.8,5.96277461]
[1765773104408,0.002,3113.9,3113.8,5.93065951]
[1765773104928,0.002,3113.9,3113.8,5.96277461]
[1765773105229,0.002,3113.9,3113.8,5.93065951]
[1765773105821,0.002,3113.9,3113.8,6.42695951]
[1765773107426,0.002,3113.9,3113.8,5.43995951]
[1765773107611,0.4093,3113.9,3113.8,4.94875951]